Cogmind - Beta 16.1 @@@ ROGUE MODE // 2026.02.10 @ 14:01:42 Player: Drago Result: Destroyed by Y-45 Defender with Heavy Assault Rifle Performance ------------- Evolutions (0) 0 Regions Visited (3) 600 Robots Destroyed (36) 180 Value Destroyed (826) 826 Prototype IDs (0) 0 Alien Tech Used (0) 0 Bonus (0) 0 TOTAL SCORE: 1606 Bonus ------- None Cogmind --------- Core Integrity 0/250 Matter 485/500 Energy 79/100 System Corruption 1% Temperature Cool (9) Movement Rolling (215) Ox9 Location -9/Recycling Parts ------- > --- POWER (1) -------- Subdweller Power Source > --- PROPULSION (2) --- Spiked Treads Wheel > --- UTILITY (2) ------ Huge Storage Unit High-capacity Matter Pod > --- WEAPON (2) ------- Heavy Riot Gun Makeshift Shrapnel Gun > --- INVENTORY (25) --- Subdweller Power Source Subdweller Power Source Subdweller Power Source Subdweller Power Source Light Treads Wheel Subdweller Monowheel Subdweller Monowheel Subdweller Monowheel Cooling System Subdweller Optics Subdweller Optics Subdweller Optics Subdweller Optics Subdweller Optics Scrap Shield Subdweller Laser Subdweller Laser Subdweller Laser Subdweller Laser Assault Rifle Light Assault Rifle Grenade Launcher Peak State ------------ > --- POWER ------------ Subdweller Power Source > --- PROPULSION ------- Spiked Treads Wheel > --- UTILITY ---------- Huge Storage Unit Seismic Detector > --- WEAPON ----------- Makeshift Laser Makeshift Shrapnel Gun > --- INVENTORY -------- Subdweller Power Source Subdweller Power Source Subdweller Power Source Light Treads Wheel Subdweller Monowheel Subdweller Monowheel Subdweller Monowheel Cooling System High-capacity Matter Pod Subdweller Optics Subdweller Optics Subdweller Optics Subdweller Optics Subdweller Optics Scrap Shield Heavy Riot Gun Subdweller Laser Subdweller Laser Subdweller Laser Subdweller Laser Assault Rifle Light Assault Rifle Grenade Launcher [Rating: 19] Favorites ----------- Power Ion Engine Engine Ion Engine Propulsion Wheel Treads Light Treads Wheel Wheel Utility Huge Storage Unit Device Seismic Detector Storage Huge Storage Unit Protection Light Armor Plating Weapon Makeshift Laser Energy Gun Makeshift Laser Energy Cannon Subdweller Beam Cannon Ballistic Gun Assault Rifle Launcher Grenade Launcher Special Weapon Welding Torch Build | -11 -10 -10 -9 ------- Run | Yrd Mat Sub Rec Slots Evolved . | . . . . Power . | . . . . Propulsion . | . . . . Utility . | . . . . Weapon . | . . . . Parts Attached 30 | 7 7 15 1 Power 7 | 1 . 6 . Engine 7 | 1 . 6 . Core . | . . . . Reactor . | . . . . Propulsion 4 | 2 1 1 . Treads 2 | 1 . 1 . Leg . | . . . . Wheel 2 | 1 1 . . Hover . | . . . . Flight . | . . . . Utility 8 | 2 3 3 . Device 2 | 1 . 1 . Storage 4 | 1 2 1 . Processor . | . . . . Hackware . | . . . . Protection 2 | . 1 1 . Artifact . | . . . . Weapon 11 | 2 3 5 1 Energy Gun 5 | 1 1 2 1 Energy Cannon 1 | . . 1 . Ballistic Gun 3 | 1 1 1 . Ballistic Cannon . | . . . . Launcher 1 | . . 1 . Special Weapon 1 | . 1 . . Impact Weapon . | . . . . Slashing Weapon . | . . . . Piercing Weapon . | . . . . Special Melee Weapon . | . . . . Unidentified Prototypes . | . . . . Parts Lost 9 | . 1 7 1 Power 2 | . . 2 . Propulsion 1 | . . 1 . Utility 3 | . . 3 . Weapon 3 | . 1 1 1 Highest Loss Streak 1 | . 1 1 1 To Critical Strikes . | . . . . Average Backups 17 | 2 8 19 24 Power 2 | . 1 3 4 Propulsion 3 | 1 2 4 5 Utility 5 | . 3 5 7 Weapon 5 | . 1 6 8 Tool/Special . | . . . . Unused Backups 19 | . . 2 17 Power 3 | . . 1 2 Propulsion 5 | . . 1 4 Utility 6 | . . . 6 Weapon 5 | . . . 5 Tool/Special . | . . . . Average Slot Usage (%) 98 | . 94 98 100 Engine 13 | . 14 13 14 Treads 13 | . 14 13 14 Wheel 13 | . 13 14 14 Device 5 | . 8 5 . Storage 15 | . 14 14 28 Protection 6 | . 6 6 . Energy Gun 18 | . 14 19 14 Energy Cannon 3 | . . 4 . Ballistic Gun 3 | . 8 1 14 Launcher 1 | . . 1 . Peak Build Rating 19 | 7 9 19 19 Average Rating 13 | 5 7 13 18 On Entrance 8 | . 7 8 19 Avg Prop Armor Cover (%) 12 | 13 11 13 16 Naked Turns . | . . . . Heaviest Build 99 | 14 91 99 93 Greatest Support 10 | 10 10 10 10 Greatest Overweight (x) 9 | 1 9 9 9 Average Overweight (x) 7 | . 2 8 9 Largest Inventory Capacity 25 | 8 25 25 25 Average Capacity 23 | 7 13 25 25 Most Carried 25 | 4 10 25 25 Average Carried 18 | 2 8 20 24 Final Capacity 25 | 8 25 25 25 Final Carried 25 | 4 10 25 24 Class Distribution -------------------- 88% | Mutant 11% | Derelict-Mutant Dominant Class ---------------- Mutant | -10/Materials Mutant | -10/Subcaves Derelict-Mutant | -9/Recycling Resources | -11 -10 -10 -9 ----------- Run | Yrd Mat Sub Rec Matter Collected 1223 | 300 385 538 . Remotely . | . . . . Salvage Created 1146 | 145 427 574 . Parts 70 | 9 29 32 . Haulers Intercepted 1 | . 1 . . Recyclers Shooed . | . . . . Parts Field Recycled . | . . . . Retrieved Matter . | . . . . Parts Self-Destructed 18 | . . 18 . Prevented . | . . . . Parts Restored . | . . . . Kills | -11 -10 -10 -9 ------- Run | Yrd Mat Sub Rec Combat Hostiles Destroyed 27 | . 13 14 . Guns 22 | . 13 9 . Cannons 2 | . . 2 . AOE 3 | . . 3 . Classes Destroyed 8 | 2 4 2 . Tunneler 2 | 2 . . . Hauler 1 | . 1 . . Recycler 1 | 1 . . . Turret 2 | . . 2 . Watcher 3 | . 3 . . Swarmer 12 | . 9 3 . Grunt 4 | . 4 . . Subdweller 11 | . . 11 . Best Kill Streak 4 | 2 4 3 . Combat Bots Only 3 | . 3 3 . Max Kills in Single Turn 2 | 1 1 2 . Gunslinging . | . . . . Exploded 2 | . . 2 . Melee . | . . . . Uniques/NPCs Destroyed . | . . . . Combat | -11 -10 -10 -9 -------- Run | Yrd Mat Sub Rec Hostile Shots Fired 142 | . 44 90 8 Missed 50 | . 11 36 3 Hits 92 | . 33 54 5 Projectile 92 | . 33 54 5 Damage Taken 1410 | . 299 1033 78 Core 253 | . 77 143 33 Absorbed by Shields . | . . . . Core Remaining (%) 100 | 100 . . . Volleys Fired 159 | 10 49 98 2 Largest 2 | 2 2 2 2 Hottest 136 | 60 76 136 74 Shots Fired 281 | 20 82 175 4 Gun 232 | 20 75 133 4 Cannon 23 | . . 23 . Launcher 19 | . . 19 . Special 7 | . 7 . . Kinetic 68 | 10 40 16 2 Thermal 194 | 10 42 140 2 Explosive 19 | . . 19 . Electromagnetic . | . . . . Robot Hit Streak 19 | 4 11 19 5 Robot Miss Streak 4 | 2 3 4 1 Penetration Max . | . . . . Secondary Targets 1 | . 1 . . Max Gunslinging Chain 1 | . 1 . . Shots Hit Robots 132 | 11 48 69 4 Core Hits 69 | 4 24 40 1 Critical Kills . | . . . . Critical Parts Destroyed . | . . . . Critical Strikes 9 | . 1 6 2 Burn 8 | . 1 5 2 Destroy 1 | . . 1 . Melee Attacks . | . . . . Impact . | . . . . Slashing . | . . . . Piercing . | . . . . Sneak Attacks . | . . . . Combat Hostiles . | . . . . Follow-up Attacks . | . . . . Damage Inflicted 2532 | 138 629 1663 102 Guns 1890 | 138 629 1021 102 Cannons 221 | . . 221 . Explosions 421 | . . 421 . Melee . | . . . . Ramming . | . . . . Kinetic 663 | 64 362 170 67 Thermal 1448 | 74 267 1072 35 Explosive 421 | . . 421 . Electromagnetic . | . . . . Impact . | . . . . Slashing . | . . . . Piercing . | . . . . Highest Corruption 1 | . 1 1 1 Average Corruption 1 | . 1 1 1 Corruption Purged . | . . . . Corruption Blocked . | . . . . Effects 35 | . 6 27 2 Message Errors 7 | . 1 5 1 Matter Fused 9 | . 1 8 . Heat Flow Errors 7 | . . 7 . Energy Discharges 4 | . 2 2 . Parts Rejected 1 | . 1 . . Data Loss (minor) 5 | . 1 3 1 Data Loss (major) 1 | . . 1 . Alerts 1 | . . 1 . Overload Shots . | . . . . Overflow Damage . | . . . . Projectiles . | . . . . Explosions . | . . . . Melee . | . . . . Knockbacks . | . . . . Impact . | . . . . Kinetic . | . . . . Secondary . | . . . . Self-Inflicted Damage 17 | . . 17 . Shots 2 | . . 2 . Rammed . | . . . . Targets Rammed . | . . . . Kicked . | . . . . Crushed . | . . . . Highest Temperature 257 | . 92 257 8 Average Temperature 51 | . 29 60 6 Received Heat Transfer 342 | . 60 264 18 Siege Activations . | . . . . Martial Activations . | . . . . Shielding Activations . | . . . . Robots Disrupted . | . . . . Combat Hostiles . | . . . . Robots Corrupted . | . . . . Combat Hostiles . | . . . . Parts Fried . | . . . . Impact Corruptions . | . . . . Robots Melted . | . . . . Combat Hostiles . | . . . . Parts Melted 3 | . . 3 . Heat Transferred 3403 | 175 671 2335 222 Parts Sabotaged . | . . . . Parts Stolen . | . . . . Parts Stripped . | . . . . Power Chain Reactions . | . . . . Alert | -11 -10 -10 -9 ------- Run | Yrd Mat Sub Rec Maximum Alert Level . | . . . . Low Security (%) 100 | 100 100 . 100 Level 1 . | . . . . Level 2 . | . . . . Level 3 . | . . . . Level 4 . | . . . . Level 5 . | . . . . High Security . | . . . . Max Security . | . . . . Peak Influence 127 | 10 127 . 16 Initial . | . . . . Average 38 | 1 50 . 1 Influence Increases 742 | 15 351 355 21 Destroy 0b10 Robot/C 360 | . 260 100 . Destroy 0b10 Robot/NC 35 | 15 20 . . Destroy Leader 48 | . 48 . . Successful Hack 44 | . 23 . 21 Lose Combat Pursuer 255 | . . 255 . Influence Decreases 742 | 15 332 374 21 Entered New Map 10 | . . 10 . Time Decay 662 | 15 322 304 21 Lost Part 70 | . 10 60 . Squads Dispatched 3 | . 3 . . Investigation 1 | . 1 . . Extermination . | . . . . Reinforcement 2 | . 2 . . Assault . | . . . . Garrison . | . . . . Intercept . | . . . . Searches Triggered . | . . . . Construction Impeded . | . . . . Haulers Reinforced . | . . . . Active Scanning Responses . | . . . . Cargo Convoy Interrupts . | . . . . Stealth | -11 -10 -10 -9 --------- Run | Yrd Mat Sub Rec Distress Signals . | . . . . Communications Jammed . | . . . . Distress Signals . | . . . . Times Spotted 36 | . 18 17 1 Peak Tracking Total 4 | . 4 4 2 Tactical Retreats 2 | . . 2 . Traps | -11 -10 -10 -9 ------- Run | Yrd Mat Sub Rec Traps Triggered 5 | . 2 3 . Indirectly . | . . . . Trap Hack Attempts . | . . . . Triggered . | . . . . Disarmed . | . . . . Reprogrammed 6 | . 6 . . Reused . | . . . . Traps Extracted . | . . . . Installed . | . . . . Triggered . | . . . . Machines | -11 -10 -10 -9 ---------- Run | Yrd Mat Sub Rec Machines Disabled 2 | . . 2 . Max in Single Turn 1 | . . 1 . Machines Repaired . | . . . . Machines Dismantled . | . . . . Machines Sabotaged . | . . . . Overloaded Fab Kills . | . . . . Hacking | -11 -10 -10 -9 --------- Run | Yrd Mat Sub Rec Machines Accessed 7 | . 4 1 2 Terminals 6 | . 4 . 2 Fabricators . | . . . . Repair Stations . | . . . . Recycling Units . | . . . . Scanalyzers . | . . . . Garrison Access . | . . . . Total Hacks 27 | . 13 4 10 Successful 20 | . 11 4 5 Failed 7 | . 2 . 5 Catastrophic 1 | . 1 . . Database Lockouts . | . . . . Manual 17 | . 8 . 9 Terminals 23 | . 13 . 10 Fabricators . | . . . . Repair Stations . | . . . . Recycling Units . | . . . . Scanalyzers . | . . . . Garrison Access . | . . . . Terminal Hacks 16 | . 9 4 3 Record 5 | . 1 4 . Robot Analysis 3 | . 3 . . Locate Traps 3 | . 2 . 1 Reprogram Traps 1 | . 1 . . Hauler Manifests 1 | . 1 . . Zone Layout 3 | . 1 . 2 Fabricator Hacks . | . . . . Repair Station Hacks . | . . . . Recycling Unit Hacks . | . . . . Scanalyzer . | . . . . Garrison Access Hacks . | . . . . Unauthorized Hacks 4 | . 2 . 2 Terminals 4 | . 2 . 2 Botnet 2 | . 1 . 1 Operators 2 | . 1 . 1 Fabricators . | . . . . Repair Stations . | . . . . Recycling Units . | . . . . Scanalyzers . | . . . . Garrison Access . | . . . . Data Cores Recovered . | . . . . Used . | . . . . Hacking Detections 5 | . 3 . 2 Full Trace Events . | . . . . Feedback Events . | . . . . Feedback Blocked . | . . . . Robot Schematics Acquired . | . . . . Robots Built . | . . . . Authchips . | . . . . Time . | . . . . Total Robot Build Rating . | . . . . Part Schematics Acquired . | . . . . Parts Built . | . . . . Authchips . | . . . . Time . | . . . . Total Part Build Rating . | . . . . Part Studies Acquired . | . . . . Parts Repaired . | . . . . Time . | . . . . Parts Recycled . | . . . . Recycled Matter . | . . . . Retrieved Matter . | . . . . Retrieved Components . | . . . . Parts Scanalyzed . | . . . . Part Schematics Acquired . | . . . . Parts Damaged . | . . . . Bothacking | -11 -10 -10 -9 ------------ Run | Yrd Mat Sub Rec Used RIF Installer . | . . . . Robots Hacked . | . . . . Non-combat . | . . . . Combat . | . . . . Robot Hacks Applied . | . . . . Relay Couplers Released . | . . . . Fabnet Peak Effective % . | . . . . Robots Rewired . | . . . . Allies Hacked . | . . . . Hacks Repelled . | . . . . Allies | -11 -10 -10 -9 -------- Run | Yrd Mat Sub Rec Total Allies . | . . . . Largest Group . | . . . . Highest-Rated Group . | . . . . Highest-Rated Ally . | . . . . Total Orders . | . . . . Ally Attacks . | . . . . Total Damage . | . . . . Kills . | . . . . Allies Corrupted . | . . . . Allies Melted . | . . . . Intel | -11 -10 -10 -9 ------- Run | Yrd Mat Sub Rec Active Infowar (turns) 2321 | 9 466 1846 . Optics 511 | . . 511 . Seismic 1810 | 9 466 1335 . Robot Analysis Total 3 | . 3 . . Derelict Logs Recovered 2 | . . 2 . Drone Launches . | . . . . Drone Recoveries . | . . . . Exploration | -11 -10 -10 -9 ------------- Run | Yrd Mat Sub Rec Turns Passed 5506 | 93 829 4417 167 Spaces Moved 2519 | 55 517 1875 72 Core 4 | 4 . . . Treads . | . . . . Legs . | . . . . Wheels 2515 | 51 517 1875 72 Hover . | . . . . Flight . | . . . . Fastest Speed 50 | 50 95 200 215 Average Speed 192 | 89 123 214 215 Slowest Speed 215 | 100 215 215 215 Overloaded Moves . | . . . . Propulsion Burnouts . | . . . . Robots Hopped . | . . . . Potential Cave-ins 4 | . . 4 . Cave-ins Triggered . | . . . . Exploration Rate (%) 50 | 5 75 93 27 Regions Visited 3 Branch Regions 2 Pre-discovered Areas . | . . . . Known Exits Taken . | . . . . Unknown Exits Taken 3 | 1 1 1 . Scrap Searched 10 | . . 10 . Spaces Dug 10 | . . 10 . Terrain Destroyed 84 | . . 84 . Melee . | . . . . Projectile 14 | . . 14 . AOE 70 | . . 70 . Terrain Rammed . | . . . . Walls Destroyed . | . . . . Machines Disabled . | . . . . Actions | -11 -10 -10 -9 --------- Run | Yrd Mat Sub Rec Total 2873 | 75 625 2093 80 Wait 114 | . 41 68 5 Move 2516 | 54 516 1874 72 Hop . | . . . . Pick Up 34 | 4 7 23 . Fast Attach 10 | 7 . 3 . Attach 9 | . 1 7 1 Detach 1 | . . 1 . Swap 20 | . 7 13 . Drop 10 | . 4 6 . Fire 159 | 10 49 98 2 Melee . | . . . . Ram . | . . . . Kick . | . . . . Crush . | . . . . Escape Stasis . | . . . . Rewire . | . . . . Trap . | . . . . Miscellaneous . | . . . . Route ------- -11/Scrapyard -10/Materials (discovered 4 exits: [*Mat x2] / [*Min] / *Sub) -10/Subcaves (discovered 3 exits: [*Mat x2] / *Rec) -9/Recycling History --------- Turn | Location | Event 16 | -11/Scrapyard | Discovered new exit (range 16) 94 | -11/Scrapyard | Entered Materials 312 | -10/Materials | Build established: Mutant 365 | -10/Materials | Discovered new exit (range 16) 453 | -10/Materials | Discovered new exit (range 10) 649 | -10/Materials | Discovered new exit (range 16) 909 | -10/Materials | Discovered new exit (range 6) 923 | -10/Materials | Entered Subcaves 923 | -10/Subcaves | Learned Materials security intel 1607 | -10/Subcaves | A swath of the cavern ceiling suddenly collapsed 1692 | -10/Subcaves | Discovered new exit (range 15) 2019 | -10/Subcaves | Discovered new exit (range 15) 2039 | -10/Subcaves | Core integrity fell below 50% 2824 | -10/Subcaves | Visited Clippyterm 2958 | -10/Subcaves | Discovered new exit (range 12) 3084 | -10/Subcaves | Ambushed by Subdweller buried in earth 3238 | -10/Subcaves | Disturbed a concealed Subdweller 3604 | -10/Subcaves | Ambushed by Subdweller buried in earth 5104 | -10/Subcaves | Core integrity fell below 20% 5186 | -10/Subcaves | Build established: Derelict-Mutant 5340 | -10/Subcaves | Entered Recycling 5507 | -9/Recycling | Destroyed by Y-45 Defender with Heavy Assault Rifle Last Messages --------------- Trojan loaded successfully. Testing... Terminal linked with 0 systems. Awaiting botnet instructions. >>Trojan(Operators) Trojan loaded successfully. Testing... Operator tracking enabled and active. 05363_ System corrupted: Component data lost. 05414_ Connecting with Terminal... >>Traps(Locate) No traps found in local area. >>Layout(Zone) Retrieving Zone 8J layout... Downloaded map data. 05429_ QE7JVNU& 19W/78CPG3XSJ&:E6%K 05490_ Y-45 Defender springs to life. 05500_ Y-45 Defender suffers critical hit (Burn). 05504_ Mak. Laser destroyed. Map ----- +----------------------------------------------------+ | ???????????????????? + #???????? | | ????????????????????#### "#???????? | | ???????????????????????# ""#???????? | | ???????????????????????#" " X ""#???????? | | ???????????????????????#"""""""" #???????? | | ????????????????????###############???????? | | ???????????????????? #???????????????????? | | ???????????????????? #???????????????????? | | ???????????????????? #???????????######### | | ???????????????????? #???????????# | | ????????????????????###???????????#" | | ??????????????????????###########?#T " | | ????????????????????### #?#" " | | ???????????????????? + ##?# " | | ???????????????????? ## #?# | | ???????????????????? ## ##?######### | | ???????????????????# ## #????????# | | ??????????????????? # #????????# | | ??????????????????? ## #????????# | | ??????????????????? ## #????????# | | ??????????????????? ## #????????# | | ???????????????????# ###########?????###### | | ???????????????????# ""#?????????????# | | ???????????????#???# Y"#?????????????# | | ???????#########r### ""#?????????????# | | ??????# @# ################# | | ??????# Y + | | ??????# # ######### ##### | | ??????# # #???????# #???# | | ??????# # #??????# #???# | | ??????# + ##??????# #???# | | ??????# # #???????# #???# | | ??????# # #???????# #???# | | ??????# # #???????# #???# | | ??????# # #???????# #???###### | | ??????? # #???????? ?????????? | | ??????? # #???????? ?????????? | | ????????#r########## #????????+?????????? | | ???????????????????# #??????????????????? | | ???????????????????# #??????????????????? | | ???????????????????# ???????????????????? | | ???????????????????? ???????????????????? | | ??????????????????????????????????????????? | | ??????????????????????????????????????????? | | ??????????????????????????????????????????? | | ??????????????????????????????????????????? | | ??????????????????????????????????????????? | | ??????????????????????????????????????????? | | ??????????????????????????????????????????? | | ??????????????????????????????????????????? | +----------------------------------------------------+ Best States ------------- Heat Dissipation 25 Energy Generation 15 Energy Capacity 250 Matter Stores 500 Matter Capacity 500 Sight Range 21 Terrain Scan Density 10 Armor Coverage 150 Evasion (%) 44 Item Schematics ----------------- None Robot Schematics ------------------ None Fabricated ------------ Nothing Repaired ---------- Nothing Studied --------- None Alien Tech Used ----------------- None Achievements -------------- Do Not Disturb Challenges ------------ None Game ------ Seed SpreadCloakReconfigurator Manual? 0 Play Time 00:31:09 Cumulative 135.3 hours Start 2026.02.10 @ 13:29:15 End 2026.02.10 @ 14:01:42 Sessions 1 Manual Loads 0 Difficulty Rogue Special Mode None Game No. 114 Rogue 114 Adventurer 0 Explorer 0 Win Type - Total 1 Types 1/0/0/0/0/0/0/0/0/0 Lore% 62 Gallery% 58 Achievement% 37 Wizard Run 0 Options --------- Layout 1 ASCII 0 Keyboard 0 Movement Numpad Keybinds 0 Fullscreen 1 Font 18/SmallcapsGlow Map View 50x40 Zoom Use 0% Tactical HUD 1 Map Filters NONE Filters NONE Steam 1 RUN: 56231670-9415-4f3d-b054-998ce3df5964